fUSD/lending_fUSD_20251103
["ID","MTS","AMOUNT","RATE_DAILY","PERIOD"]
[392920498,1762141832782,-207.95190382,0.00014891,2]
[392920500,1762141832791,-151.0,0.00014891,2]
[392920502,1762141832801,-500.0,0.00014891,2]
[392920504,1762141832810,-151.0,0.00014891,2]
[392920506,1762141832819,-500.0,0.00014891,2]
[392920508,1762141832828,-500.0,0.00014891,2]
[392920510,1762141832836,-500.0,0.00014891,2]
[392920512,1762141832845,-500.0,0.00014891,2]
[392920515,1762141832855,-259.885625,0.00014891,2]
[392920518,1762141832864,-500.0,0.00014891,2]
[392920521,1762141832875,-500.0,0.00014891,2]
[392920523,1762141832884,-322.6107,0.00014891,2]
[392920524,1762141832893,-322.6107,0.00014891,2]
[392920527,1762141832903,-500.0,0.00014899,2]
[392920528,1762141832911,-227.01261175,0.00014899,2]
[392920531,1762141832920,-162.41622982,0.00014899,2]
[392920533,1762141832930,-234.73312994,0.00014899,2]
[392920534,1762141832939,-664.31,0.00014899,2]
[392920536,1762141832948,-500.0,0.00014899,2]
[392920538,1762141832957,-500.0,0.00014899,2]
[392920539,1762141832966,-288.79009786,0.00014899,2]
[392920541,1762141832975,-500.0,0.00014899,2]
[392920543,1762141832984,-500.0,0.00014899,2]
[392920545,1762141832993,-500.0,0.00014899,2]
[392920547,1762141833002,-500.0,0.00014899,2]
[392920549,1762141833011,-500.0,0.00014899,2]
[392920551,1762141833020,-500.0,0.00014899,2]
[392920552,1762141833029,-500.0,0.00014899,2]
[392920553,1762141833038,-450.61507164,0.00014899,2]
[392920554,1762141833047,-500.0,0.00014899,2]
[392920555,1762141833056,-500.0,0.00014899,2]
[392920556,1762141833065,-87050.6016,0.000149,2]
[392920557,1762141833075,-159.34240474,0.000149,2]
[392920558,1762141833084,-183.97219256,0.000149,2]
[392920559,1762141833094,-5000.0,0.000149,2]
[392920560,1762141833104,-176.02230604,0.000149,2]
[392920561,1762141833114,-193.13570013,0.000149,2]
[392920562,1762141833123,-32689.03243099,0.000149,2]
[392920563,1762141833132,-1016.0,0.000149,2]
[392920564,1762141833145,-262.91153524,0.000149,2]
[392920565,1762141833155,-332.8981986,0.000149,2]
[392920566,1762141833165,-168.0,0.00014909,2]
[392920567,1762141833174,-6391.8381843,0.00014948,2]
[392920568,1762141833183,-30747.0991743,0.00014951,2]
[392920569,1762141833192,-168.0,0.00014967,2]
[392920570,1762141833201,-542.320165,0.00014973,2]
[392920571,1762141833210,-621.06284059,0.00014973,2]
[392920572,1762141833219,-165.82264918,0.00014973,2]
[392920573,1762141833228,-500.0,0.00014973,2]
[392920574,1762141833237,-500.55192615,0.00014973,2]
[392920575,1762141833247,-502.91660732,0.00014973,2]
[392920576,1762141833256,-500.0,0.00014973,2]
[392920577,1762141833265,-500.0,0.00014973,2]
[392920578,1762141833274,-269.52066072,0.00014973,2]
[392920579,1762141833283,-500.73063442,0.00014973,2]
[392920580,1762141833292,-529.28385714,0.00014973,2]
[392920581,1762141833301,-500.0,0.00014973,2]
[392920582,1762141833314,-500.0,0.00014973,2]
[392920583,1762141833324,-500.0,0.00014973,2]
[392920584,1762141833334,-552.1894013,0.00014973,2]
[392920585,1762141833345,-500.0,0.00014973,2]
[392920586,1762141833354,-504.91524264,0.00014973,2]
[392920587,1762141833364,-500.0,0.00014973,2]
[392920588,1762141833374,-500.0,0.00014973,2]
[392920589,1762141833383,-683.85825,0.0001498,2]
[392920590,1762141833392,-150.0,0.00014986,2]
[392920591,1762141833403,-150.0,0.00014986,2]
[392920592,1762141833413,-151.86423946,0.00014986,2]
[392920593,1762141833423,-150.0,0.00014986,2]
[392920594,1762141833433,-275.67677073,0.0001499,2]
[392920595,1762141833443,-275.67677073,0.0001499,2]
[392920596,1762141833452,-500.0,0.00014997,2]
[392920597,1762141833464,-7770.1166146,0.00014998,2]
[392920598,1762141833474,-500.0,0.00014998,2]
[392920599,1762141833484,-171.39645334,0.00014999,2]
[392920600,1762141833495,-242.29225255,0.00014999,2]
[392920601,1762141833507,-152.43127205,0.00014999,2]
[392920602,1762141833519,-150.0,0.00014999,2]
[392920603,1762141833529,-150.0,0.00014999,2]
[392920604,1762141833539,-151.98744077,0.00014999,2]
[392920605,1762141833551,-500.0,0.00014999,2]
[392920606,1762141833562,-500.0,0.00014999,2]
[392920607,1762141833572,-500.0,0.00014999,2]
[392920608,1762141833583,-500.0,0.00014999,2]
[392920609,1762141833592,-500.0,0.00014999,2]
[392920610,1762141833601,-500.0,0.00014999,2]
[392920611,1762141833611,-500.0,0.00014999,2]
[392920612,1762141833620,-424.74080812,0.00014999,2]
[392920613,1762141833636,-500.0,0.00014999,2]
[392920614,1762141833645,-500.0,0.00014999,2]
[392920615,1762141833655,-500.0,0.00014999,2]
[392920616,1762141833664,-500.0,0.00014999,2]
[392920617,1762141833674,-500.0,0.00014999,2]
[392920618,1762141833685,-500.0,0.00014999,2]
[392920619,1762141833694,-500.0,0.00014999,2]
[392920620,1762141833708,-500.0,0.00014999,2]
[392920621,1762141833718,-500.0,0.00014999,2]
[392920622,1762141833727,-500.0,0.00014999,2]
[392920623,1762141833737,-311.76,0.00014999,2]
[392920624,1762141833747,-150.0,0.00014999,2]
[392920625,1762141833756,-475.02610166,0.00014999,2]
[392920626,1762141833776,-24.97389834,0.00014999,2]
[392920627,1762141833786,-152.56767147,0.00014999,2]
[392920628,1762141833796,-500.0,0.00014999,2]
[392920629,1762141833806,-150.0,0.00014999,2]
[392920630,1762141833816,-153.80749838,0.00014999,2]
[392920631,1762141833825,-150.0,0.00014999,2]
[392920632,1762141833835,-157.81854849,0.00014999,2]
[392920633,1762141833844,-150.0,0.00014999,2]
[392920634,1762141833854,-152.71544728,0.00014999,2]
[392920635,1762141833863,-150.0,0.00014999,2]
[392920636,1762141833872,-202.01765236,0.00014999,2]
[392920637,1762141833886,-150.0,0.00014999,2]
[392920638,1762141833899,-150.0,0.00014999,2]
[392920639,1762141833909,-150.0,0.00014999,2]
[392920640,1762141833918,-150.0,0.00014999,2]
[392920641,1762141833928,-150.0,0.00014999,2]
[392920642,1762141833938,-150.0,0.00014999,2]
[392920643,1762141833949,-150.0,0.00014999,2]
[392920644,1762141833959,-204.01087726,0.00014999,2]
[392920645,1762141833969,-3088.0,0.00015,2]
[392920646,1762141833978,-1798.67128917,0.00015,2]
[392920647,1762141833990,-1603.77847889,0.00015,2]
[392920648,1762141834390,-3233.04344077,0.00015,2]
[392920649,1762141834401,-525.74328535,0.00015,2]
[392920650,1762141834412,-1367.74106718,0.00015,2]
[392920651,1762141834423,-578.1981307,0.00015,2]
[392920652,1762141834433,-344.81,0.00015,2]
[392920653,1762141834448,-19324.75744367,0.00015,2]
[392920654,1762141834459,-75633.66265766,0.00015,2]
[392920655,1762141834470,-67569.30592386,0.00015,2]
[392920658,1762141838077,-500.0,0.00014899,2]
[392920659,1762141838087,-500.0,0.00014899,2]
[392920660,1762141838096,-500.0,0.00014899,2]
[392920661,1762141838105,-17379.10363468,0.00015,2]
[392920662,1762141838115,-8237.14065882,0.00015,2]
[392920663,1762141838157,-4176.48507522,0.00015,2]
[392920664,1762141838168,-20720.34174516,0.00015,2]
[392920665,1762141838180,-4543.17523489,0.00015,2]
[392920666,1762141838195,-255.2082825,0.00015,2]
[392920667,1762141838236,-509.57715147,0.00015,2]
[392920668,1762141838247,-1374.5491995,0.00015,2]
[392920669,1762141838258,-2698.26467723,0.00015,2]
[392920670,1762141838270,-9669.01550692,0.00015,2]
[392920671,1762141838289,-8679.93775452,0.00015,2]
[392920672,1762141838301,-113166.8820011,0.00015,2]
[392920673,1762141838344,-471.87366345,0.00015,2]
[392920756,1762141840615,-3143.10993874,0.00015,2]
[392920757,1762141840632,-1083.4,0.00015,2]
[392920758,1762141840652,-917.73061187,0.00015,2]
[392920760,1762141840664,-9119.99999904,0.00015,2]
[392920761,1762141840675,-107433.05596174,0.00015,2]
[392920762,1762141840841,-1.6e-07,0.00015,2]
[392920778,1762141843169,-931.09196623,0.00015,2]
[392920788,1762141843224,-254.16849995,0.00015,2]
[392920790,1762141843236,-442.3191871,0.00015,2]
[392920791,1762141843287,-115967.50846443,0.00015,2]
[392920792,1762141843335,-263.58446541,0.00015,2]
[392920793,1762141843347,-1204.95852891,0.00015,2]
[392920794,1762141843358,-402.80055483,0.00015,2]
[392920795,1762141843390,-8851.71076802,0.00015,2]
[392920796,1762141843399,-13344.10005132,0.00015,2]
[392920797,1762141843410,-6855.90067227,0.00015,2]
[392920833,1762141846438,-304.32500219,0.00015,2]
[392920834,1762141908459,-743.5887,0.00014636,2]
[392920835,1762141908481,-253.50029957,0.00014674,2]
[392920836,1762141911691,-238.07538416,0.00014674,2]
[392920837,1762141913248,-276.76621093,0.00014674,2]
[392920838,1762141951056,250.0,0.0001391,2]
[392920839,1762141955692,5516.0,0.000119,5]
[392920840,1762141957127,200.0,0.00013906,2]
[392920841,1762141966744,-445.92975184,0.000146,2]
[392920842,1762141969286,-287.5928741,0.000146,2]
[392920843,1762141970599,150.0,0.00013905,2]
[392920844,1762141999924,1852.42,0.00013913,2]
[392920845,1762142008065,1448.11,0.00013887,2]
[392920847,1762142073847,150.0,0.00013895,2]
[392920848,1762142092629,157.52,0.00013895,2]
[392920849,1762142129491,2461.9612282,0.00013872,2]
[392920850,1762142129517,289.0387718,0.00013872,2]
[392920851,1762142133424,-38.91055206,0.000146,2]
[392920852,1762142133448,-200.0,0.00014647,2]
[392920853,1762142133469,-223.6948556,0.00014674,2]
[392920854,1762142152016,5930.9724564,0.00013857,2]
[392920855,1762142152039,29805.39944674,0.00013857,2]
[392920856,1762142152061,20000.0,0.00013857,2]
[392920857,1762142152081,10000.0,0.00013857,2]
[392920858,1762142152102,2074.93809686,0.00013857,2]
[392920859,1762142153428,-200.0,0.00014483,2]
[392920860,1762142153451,-46.93231342,0.00014542,2]
[392920861,1762142163508,-153.06768658,0.00014542,2]
[392920862,1762142163531,-41.93231342,0.00014603,2]
[392920863,1762142178515,-158.06768658,0.00014603,2]
[392920864,1762142178541,-141.93231342,0.00014639,2]
[392920865,1762142193437,-351.0,0.000145,2]
[392920866,1762142198569,-195.0,0.000145,2]
[392920867,1762142201071,-343.99999984,0.000145,2]
[392920868,1762142203263,-168.0,0.000145,2]
[392920869,1762142205572,-179.948,0.000145,2]
[392920870,1762142207817,-553.42349573,0.000145,2]
[392920871,1762142211632,-360.36259135,0.000145,2]
[392920872,1762142213768,-679.4008371,0.000145,2]
[392920873,1762142216338,-300.0,0.000145,2]
[392920874,1762142218154,-500.0,0.000145,2]
[392920875,1762142219883,-221.03854511,0.000145,2]
[392920876,1762142222702,-150.0,0.00014499,2]
[392920877,1762142222723,-65.81579372,0.000145,2]
[392920878,1762142228948,-578.96145489,0.000145,2]
[392920879,1762142230853,-560.10453893,0.000145,2]
[392920880,1762142232917,-165.60681668,0.000145,2]
[392920881,1762142234594,-312.74460604,0.000145,2]
[392920882,1762142236873,-164.56674478,0.000145,2]
[392920883,1762142240463,-358.52523476,0.000145,2]
[392920884,1762142240982,1176.78043043,0.00014469,2]
[392920885,1762142242631,-310.94964294,0.000145,2]
[392920886,1762142244095,500.0,0.00013,2]
[392920887,1762142244423,500.0,0.00012011,2]
[392920888,1762142248228,-257.02561517,0.000145,2]
[392920889,1762142250950,-300.0,0.000145,2]
[392920890,1762142253667,-300.0,0.000145,2]
[392920891,1762142256410,-267.46595585,0.000145,2]
[392920892,1762142259883,-500.0,0.000145,2]
[392920893,1762142262475,-246.0,0.00014499,2]
[392920894,1762142262495,-46.91891596,0.000145,2]
[392920895,1762142264570,-288.7100243,0.000145,2]
[392920896,1762142266388,-426.16223111,0.000145,2]
[392920897,1762142270852,-274.01863421,0.000145,2]
[392920898,1762142273737,-316.98809815,0.000145,2]
[392920899,1762142275965,-500.0,0.000145,2]
[392920900,1762142276532,170.16520936,0.00014469,2]
[392920901,1762142279958,-588.56907632,0.000145,2]
[392920902,1762142283562,1598.797904,0.00014427,2]
[392920903,1762142284849,-300.0,0.00014499,2]
[392920904,1762142284872,-392.09413307,0.000145,2]
[392920905,1762142286448,-600.0,0.000145,2]
[392920906,1762142288558,-482.15802631,0.000145,2]
[392920907,1762142292327,-441.2205273,0.000145,2]
[392920908,1762142296092,2455.307139,0.00014427,2]
[392920909,1762142296668,-187.2538,0.000145,2]
[392920910,1762142298837,155.0,0.00018,30]
[392920911,1762142300337,1000.0,0.00013699,2]
[392920912,1762142302267,-250.0,0.000145,2]
[392920913,1762142304423,-265.33553969,0.000145,2]
[392920915,1762142308636,532.988424,0.00014427,2]
[392920916,1762142308729,-195.0,0.000145,2]
[392920917,1762142310206,-207.42033652,0.000145,2]
[392920918,1762142312820,-164.31319096,0.00014499,2]
[392920919,1762142312842,-30.68680904,0.00014499,2]
[392920920,1762142314141,2065.97089321,0.00014469,2]
[392920921,1762142314167,2910.01948826,0.00014469,2]
[392920922,1762142315909,-341.47,0.00014499,2]
[392920923,1762142318062,-91.53455183,0.00014499,2]
[392920924,1762142318087,-158.90882822,0.00014499,2]
[392920925,1762142318110,-0.54945044,0.000145,2]
[392920926,1762142320845,-227.12104671,0.00014499,2]
[392920927,1762142323171,-196.64267996,0.00014499,2]
[392920928,1762142325885,-76.23627333,0.00014499,2]
[392920929,1762142325916,-123.46396663,0.00014499,2]
[392920930,1762142343520,-289.52428886,0.00014499,2]
[392920931,1762142345552,-87.01174451,0.00014499,2]
[392920932,1762142345576,-327.52713679,0.00014499,2]
[392920933,1762142347214,-172.47286321,0.00014499,2]
[392920934,1762142347238,-9.65935977,0.00014499,2]
[392920935,1762142348907,-250.0,0.00014499,2]
[392920936,1762142350131,666.0,0.00014674,120]
[392920937,1762142351139,-240.34064023,0.00014499,2]
[392920938,1762142351162,-109.52375045,0.00014499,2]
[392920939,1762142354802,-390.47624955,0.00014499,2]
[392920940,1762142354828,-88.84821092,0.00014499,2]
[392920941,1762142356994,-322.92112244,0.00014499,2]
[392920942,1762142357991,-88.23066664,0.00014499,2]
[392920943,1762142358023,-500.0,0.00014499,2]
[392920944,1762142358053,-500.0,0.00014499,2]
[392920945,1762142358083,-174.74907133,0.00014499,2]
[392920946,1762142358113,-500.0,0.00014499,2]
[392920947,1762142358148,-500.0,0.00014499,2]
[392920948,1762142358178,-500.0,0.00014499,2]
[392920949,1762142358208,-500.0,0.00014499,2]
[392920950,1762142358238,-500.0,0.00014499,2]
[392920951,1762142358268,-500.0,0.00014499,2]
[392920952,1762142373496,-961.56673312,0.000145,2]
[392920953,1762142374912,157.69481526,0.00014417,2]
[392920954,1762142376182,-290.1879817,0.000145,2]
[392920955,1762142379094,-182.62572828,0.000145,2]
[392920956,1762142379895,157.69481526,0.00014477,2]
[392920957,1762142380825,156.92,0.00013699,2]
[392920958,1762142381253,-308.54670815,0.000145,2]
[392920959,1762142384642,-622.9641729,0.000145,2]
[392920960,1762142386008,286.59319029,0.00014486,2]
[392920961,1762142387411,-160.19533334,0.000145,2]
[392920962,1762142401265,715.14770325,0.00014499,2]
[392920963,1762142401289,484.85229675,0.00014499,2]
[392920964,1762142401327,300.0,0.00014499,2]
[392920965,1762142401949,-300.77396753,0.000145,2]
[392920966,1762142402296,150.0,0.00014499,2]
[392920967,1762142408452,-352.37384763,0.000145,2]
[392920968,1762142408679,1898.25,0.0001449,2]
[392920969,1762142408915,1898.25,0.0001449,2]
[392920970,1762142410614,-357.28298135,0.000145,2]
[392920971,1762142413519,-165.17624386,0.000145,2]
[392920972,1762142416256,-181.827646,0.000145,2]
[392920973,1762142416326,657.46,0.00013782,2]
[392920974,1762142417778,-180.27972521,0.000145,2]
[392920976,1762142421610,-180.45480722,0.000145,2]
[392920977,1762142423227,-343.03202729,0.000145,2]
[392920979,1762142425823,-215.80525928,0.000145,2]
[392920980,1762142428900,-264.74107672,0.000145,2]
[392920981,1762142430533,391.16876329,0.0001449,2]
[392920982,1762142431048,-165.60028277,0.000145,2]
[392920983,1762142432792,-314.7698014,0.000145,2]
[392920984,1762142450213,-354.80801105,0.000145,2]
[392920985,1762142455032,-638.58943523,0.000145,2]
[392920986,1762142456579,319.88799234,0.000144,2]
[392920987,1762142457157,311.63611498,0.000144,2]
[392920988,1762142457693,-271.76290924,0.000145,2]
[392920989,1762142459625,-319.40133199,0.000145,2]
[392920990,1762142461013,-182.30181709,0.000145,2]
[392920991,1762142461370,300.0,0.00014499,2]
[392920992,1762142462342,1075.53195793,0.00014499,2]
[392920993,1762142462942,-154.95548449,0.000145,2]
[392920994,1762142465734,-252.03963095,0.000145,2]
[392920995,1762142467595,-172.6681036,0.000145,2]
[392920996,1762142470026,-328.38740346,0.000145,2]
[392920997,1762142473709,-378.37469044,0.000145,2]
[392920998,1762142476319,-259.52036905,0.000145,2]
[392920999,1762142488158,500.0,0.00014499,2]
[392921000,1762142488390,500.0,0.00014499,2]
[392921001,1762142488920,500.0,0.00014499,2]
[392921002,1762142488966,500.0,0.00014499,2]
[392921003,1762142489050,-333.38835847,0.000145,2]
[392921004,1762142489097,212.97287471,0.00014499,2]
[392921005,1762142489119,287.02712529,0.00014499,2]
[392921006,1762142489352,500.0,0.00014499,2]
[392921007,1762142489584,500.0,0.00014499,2]
[392921008,1762142489810,500.0,0.00014499,2]
[392921009,1762142490034,590.63664847,0.00014499,2]
[392921010,1762142491210,-256.4440496,0.000145,2]
[392921011,1762142495578,3949.035,0.0001421,2]
[392921012,1762142495634,247.35,0.0001421,2]
[392921013,1762142496206,-300.0,0.000145,2]
[392921014,1762142498297,-166.66666668,0.000145,2]
[392921015,1762142499884,-249.7229513,0.000145,2]
[392921016,1762142501534,-199.22908831,0.000145,2]
[392921017,1762142507330,-166.61164153,0.000145,2]
[392921018,1762142518296,500.0,0.00014499,2]
[392921019,1762142518538,500.0,0.00014499,2]
[392921020,1762142518812,500.0,0.00014499,2]
[392921021,1762142519054,500.0,0.00014499,2]
[392921022,1762142519229,-173.61263391,0.000145,2]
[392921023,1762142519280,500.0,0.00014499,2]
[392921024,1762142519523,331.3447877,0.00014499,2]
[392921025,1762142522168,500.0,0.00014499,2]
[392921026,1762142522195,-262.9607824,0.000145,2]
[392921027,1762142522286,94.61643854,0.00014499,2]
[392921028,1762142522308,405.38356146,0.00014499,2]
[392921029,1762142522551,425.64626727,0.00014499,2]
[392921030,1762142525009,151.0,0.00014491,2]
[392921031,1762142525602,151.0,0.00014491,2]
[392921032,1762142525630,-246.47963095,0.000145,2]
[392921033,1762142526289,151.0,0.00014491,2]
[392921034,1762142526908,151.0,0.00014491,2]
[392921035,1762142527188,-449.44471843,0.000145,2]
[392921036,1762142527505,151.0,0.00014491,2]
[392921037,1762142528094,151.0,0.00014491,2]
[392921038,1762142528152,151.0,0.00014491,2]
[392921039,1762142528206,162.9741838,0.00014491,2]
[392921040,1762142528251,623.58710448,0.00014491,2]
[392921041,1762142528334,496.47127164,0.00014491,2]
[392921042,1762142528422,151.0,0.00014491,2]
[392921043,1762142528525,500.0,0.00014491,2]
[392921044,1762142528708,192.99999984,0.00014491,2]
[392921045,1762142528756,151.0,0.00014491,2]
[392921046,1762142529129,500.0,0.00014491,2]
[392921047,1762142529182,250.0,0.00014496,2]
[392921048,1762142529349,151.0,0.00014491,2]
[392921049,1762142529735,500.0,0.00014491,2]
[392921050,1762142529971,-203.01,0.000145,2]
[392921051,1762142530361,500.0,0.00014491,2]
[392921052,1762142530958,500.0,0.00014491,2]
[392921053,1762142531598,573.21060322,0.00014491,2]
[392921054,1762142533395,-302.46887359,0.000145,2]
[392921055,1762142533950,151.0,0.00014491,2]
[392921056,1762142534544,151.0,0.00014491,2]
[392921057,1762142534593,200.0,0.00014491,2]
[392921058,1762142534923,-194.99544923,0.000145,2]
[392921059,1762142535186,151.0,0.00014491,2]
[392921060,1762142535787,151.0,0.00014491,2]
[392921061,1762142536014,500.0,0.00014491,2]
[392921062,1762142536499,151.0,0.00014491,2]
[392921063,1762142536675,500.0,0.00014491,2]
[392921064,1762142537121,151.0,0.00014491,2]
[392921065,1762142537319,500.0,0.00014491,2]
[392921066,1762142537709,151.0,0.00014491,2]
[392921067,1762142537747,102.73700829,0.00014491,2]
[392921068,1762142537770,397.26299171,0.00014491,2]
[392921069,1762142537800,-411.97479195,0.000145,2]
[392921070,1762142537968,500.0,0.00014491,2]
[392921071,1762142538315,151.0,0.00014491,2]
[392921072,1762142538613,500.0,0.00014491,2]
[392921073,1762142538712,202.83170012,0.00014491,2]
[392921074,1762142538913,219.92079299,0.00014491,2]
[392921075,1762142538972,151.0,0.00014491,2]
[392921076,1762142539007,500.0,0.00013,2]
[392921077,1762142539204,500.0,0.00014491,2]
[392921078,1762142539295,500.0,0.00013,2]
[392921079,1762142539624,500.0,0.00012011,2]
[392921080,1762142539841,500.0,0.00014491,2]
[392921081,1762142539969,552.62673525,0.00012011,2]
[392921082,1762142540441,500.0,0.00014491,2]
[392921083,1762142541074,500.0,0.00014491,2]
[392921084,1762142541689,500.0,0.00014491,2]
[392921085,1762142542146,500.0,0.00014491,2]
[392921086,1762142542807,500.0,0.00014491,2]
[392921087,1762142543313,322.6107,0.00014491,2]
[392921088,1762142543352,500.0,0.00013,2]
[392921089,1762142543420,500.0,0.00014491,2]
[392921090,1762142543738,500.0,0.00013,2]
[392921091,1762142544076,500.0,0.00014491,2]
[392921092,1762142544124,500.0,0.00013,2]
[392921093,1762142544465,500.0,0.00013,2]
[392921094,1762142544684,500.0,0.00014491,2]
[392921095,1762142544929,473.77256475,0.00013,2]
[392921096,1762142544953,26.22743525,0.00013,2]
[392921097,1762142544994,153.2192177,0.00014491,2]
[392921098,1762142545265,500.0,0.00013,2]
[392921099,1762142545321,211.25781776,0.00014491,2]
[392921100,1762142545379,500.0,0.00014491,2]
[392921101,1762142545616,500.0,0.00013,2]
[392921102,1762142545703,500.0,0.00013,2]
[392921103,1762142545940,500.0,0.00014491,2]
[392921104,1762142545978,500.0,0.00013,2]
[392921105,1762142546331,500.0,0.00013,2]
[392921106,1762142546527,500.0,0.00013,2]
[392921107,1762142546646,500.0,0.00013,2]
[392921108,1762142546898,500.0,0.00013,2]
[392921109,1762142546978,500.0,0.00013,2]
[392921110,1762142547024,500.0,0.00014491,2]
[392921111,1762142547070,500.0,0.00013,2]
[392921112,1762142547237,500.0,0.00013,2]
[392921113,1762142547329,500.0,0.00013,2]
[392921114,1762142547414,500.0,0.00013,2]
[392921115,1762142547884,500.0,0.00013,2]
[392921116,1762142547935,500.0,0.00014491,2]
[392921117,1762142547977,322.6107,0.00014491,2]
[392921118,1762142548028,286.69482929,0.00013,2]
[392921119,1762142548051,213.30517071,0.00013,2]
[392921120,1762142548088,500.0,0.00012011,2]
[392921121,1762142548127,500.0,0.00012011,2]
[392921122,1762142548177,500.0,0.00012011,2]
[392921123,1762142548211,500.0,0.00012011,2]
[392921124,1762142548279,500.0,0.00014491,2]
[392921125,1762142548315,500.0,0.00012011,2]
[392921126,1762142548379,500.0,0.00013,2]
[392921127,1762142548414,341.97386208,0.00013,2]
[392921128,1762142548472,500.0,0.00012011,2]
[392921129,1762142548508,752.72436242,0.00012011,2]
[392921130,1762142548612,500.0,0.00012011,2]
[392921131,1762142548703,500.0,0.00013,2]
[392921132,1762142548795,500.0,0.00012011,2]
[392921133,1762142548890,500.0,0.00014491,2]
[392921134,1762142548952,671.29303997,0.00012011,2]
[392921135,1762142549066,500.0,0.00012011,2]
[392921136,1762142549165,500.0,0.00012011,2]
[392921137,1762142549420,900.0,0.00012011,2]
[392921138,1762142549494,120.71356482,0.00012011,2]
[392921139,1762142549517,379.28643518,0.00012011,2]
[392921140,1762142549552,500.0,0.00014491,2]
[392921141,1762142549895,500.0,0.00012011,2]
[392921142,1762142550114,500.0,0.00014491,2]
[392921143,1762142550220,500.0,0.00012011,2]
[392921144,1762142550545,500.0,0.00012011,2]
[392921145,1762142550856,500.0,0.00012011,2]
[392921146,1762142551145,247.53620574,0.00013,2]
[392921147,1762142551222,500.0,0.00012011,2]
[392921148,1762142551342,500.0,0.00014491,2]
[392921149,1762142551476,500.0,0.00014499,2]
[392921150,1762142551559,693.79694071,0.00012011,2]
[392921151,1762142551718,500.0,0.00014499,2]
[392921152,1762142551948,500.0,0.00014491,2]
[392921153,1762142554107,-159.66198224,0.000145,2]
[392921154,1762142555815,-409.92909857,0.000145,2]
[392921155,1762142557397,-166.61164153,0.000145,2]
[392921156,1762142557471,239.84119403,0.00014491,2]
[392921157,1762142559063,-195.0,0.000145,2]
[392921158,1762142561338,-179.07420669,0.000145,2]
[392921159,1762142564129,-176.49702007,0.000145,2]
[392921160,1762142564462,500.0,0.00014499,2]
[392921161,1762142564713,500.0,0.00014499,2]
[392921162,1762142564825,179.69692622,0.000144,2]
[392921163,1762142564962,532.10925199,0.00014499,2]
[392921164,1762142567243,164.99245302,0.000144,2]
[392921165,1762142567977,-356.87196951,0.000145,2]
[392921166,1762142570713,-400.36613825,0.000145,2]
[392921167,1762142572408,-424.17736145,0.000145,2]
[392921168,1762142575240,-176.49702007,0.000145,2]
[392921169,1762142575503,3782.810542,0.00014427,2]
[392921170,1762142577574,-246.47963095,0.000145,2]
[392921171,1762142580338,-184.51152619,0.000145,2]
[392921172,1762142581276,300.0,0.00014499,2]
[392921173,1762142582232,150.0,0.00014499,2]